bitfinex/quotes_BTCUSD_20240811
["timestamp","ask_amount","ask_price","bid_price","bid_amount"]
[1723351754057,2.37877689,61003.0,61002.0,0.0019141]
[1723351754264,1.78513607,61003.0,61002.0,0.00259529]
[1723351754472,1.86323607,61003.0,61002.0,0.00259529]
[1723351754695,1.78513607,61003.0,61002.0,0.00259529]
[1723351754880,1.62132115,61003.0,61002.0,0.13829529]
[1723351755037,1.64019225,61003.0,61002.0,0.13829529]
[1723351755240,1.51805387,61003.0,61002.0,0.13829529]
[1723351756482,1.64019225,61003.0,61002.0,0.13829529]
[1723351758293,1.61829225,61003.0,61002.0,0.13829529]
[1723351759043,1.49615387,61003.0,61002.0,0.13829529]
[1723351759247,1.49115387,61003.0,61002.0,0.13829529]
[1723351759442,1.58590408,61003.0,61002.0,0.13729529]
[1723351759649,1.59090408,61003.0,61002.0,0.13729529]
[1723351760208,1.49515387,61003.0,61002.0,0.13829529]
[1723351760414,1.18755787,61003.0,61002.0,0.13829529]
[1723351760625,1.0558162,61003.0,61002.0,0.13829529]
[1723351760922,0.95606187,61003.0,61002.0,0.13729529]
[1723351761124,0.95606187,61003.0,61002.0,0.13829529]
[1723351761125,0.95806187,61003.0,61002.0,0.13829529]
[1723351761330,0.95306187,61003.0,61002.0,0.13829529]
[1723351762287,1.18655787,61003.0,61002.0,0.13829529]
[1723351762464,1.18255787,61003.0,61002.0,0.13829529]
[1723351762669,1.18255787,61003.0,61002.0,0.13729529]
[1723351763045,1.18455787,61003.0,61002.0,0.13729529]
[1723351763423,1.18255787,61003.0,61002.0,0.13729529]
[1723351763988,1.18455787,61003.0,61002.0,0.13729529]
[1723351764346,1.25587675,61003.0,61002.0,0.13729529]
[1723351764763,1.25787675,61003.0,61002.0,0.13729529]
[1723351765117,1.41205387,61003.0,61002.0,0.00159529]
[1723351765307,1.41405387,61003.0,61002.0,0.00159529]
[1723351765521,1.25787296,61003.0,61002.0,0.14459529]
[1723351765725,1.25587296,61003.0,61002.0,0.14459529]
[1723351766643,1.25787296,61003.0,61002.0,0.14459529]
[1723351766970,1.25587296,61003.0,61002.0,0.14459529]
[1723351767167,0.91162896,61003.0,61002.0,0.14459529]
[1723351767394,0.8891901,61003.0,61002.0,0.14459529]
[1723351767729,0.84031387,61003.0,61002.0,0.14459529]
[1723351769798,0.83831387,61003.0,61002.0,0.14459529]
[1723351770043,0.84031387,61003.0,61002.0,0.14459529]
[1723351770551,0.83631387,61003.0,61002.0,0.14459529]
[1723351770930,0.83631387,61003.0,61002.0,0.14559529]
[1723351771131,0.83631387,61003.0,61002.0,0.14459529]
[1723351771579,0.83631387,61003.0,61002.0,0.14859529]
[1723351771717,0.83631387,61003.0,61002.0,0.14459529]
[1723351772233,0.83631387,61003.0,61002.0,0.14759529]
[1723351772407,0.83631387,61003.0,61002.0,0.14859529]
[1723351772792,0.83631387,61003.0,61002.0,0.14759529]
[1723351774171,0.83631387,61003.0,61002.0,0.26234529]
[1723351774326,0.83631387,61003.0,61002.0,0.25934529]
[1723351774528,0.83831387,61003.0,61002.0,0.25934529]
[1723351774749,0.83831387,61003.0,61002.0,0.26034529]
[1723351774954,0.83831387,61003.0,61002.0,0.25934529]
[1723351775133,0.83831387,61003.0,61002.0,0.26234529]
[1723351775551,0.83831387,61003.0,61002.0,0.25934529]
[1723351775756,0.83631387,61003.0,61002.0,0.26234529]
[1723351776902,0.83631387,61003.0,61002.0,0.26334529]
[1723351777102,0.83631387,61003.0,61002.0,0.26034529]
[1723351777326,0.83631387,61003.0,61002.0,0.14559529]
[1723351777458,0.83631387,61003.0,61002.0,0.14959529]
[1723351778290,0.83631387,61003.0,61002.0,0.26434529]
[1723351779502,0.83631387,61003.0,61002.0,0.14959529]
[1723351782509,0.83631387,61003.0,61002.0,0.26434529]
[1723351782685,0.83077648,61003.0,61002.0,0.26762347]
[1723351783010,0.83629387,61003.0,61002.0,0.26434529]
[1723351783637,0.83629387,61003.0,61002.0,0.14959529]
[1723351784454,0.95104187,61003.0,61002.0,0.00659529]
[1723351785199,0.83629387,61003.0,61002.0,0.00659529]
[1723351786748,0.95104187,61003.0,61002.0,0.00659529]
[1723351786950,1.18053787,61003.0,61002.0,0.00659529]
[1723351787369,1.18053787,61003.0,61002.0,0.00559529]
[1723351787887,1.18053787,61003.0,61002.0,0.00159529]
[1723351788058,1.18053787,61003.0,61002.0,0.00259529]
[1723351788249,1.18053787,61003.0,61002.0,0.00159529]
[1723351788635,1.18053787,61003.0,61002.0,0.00459529]
[1723351788872,1.18253787,61003.0,61002.0,0.00459529]
[1723351789518,1.18053787,61003.0,61002.0,0.00459529]
[1723351790264,1.18053787,61003.0,61002.0,0.00159529]
[1723351790667,1.18053787,61003.0,61002.0,0.00259529]
[1723351791501,1.26013787,61003.0,61002.0,0.00259529]
[1723351791901,1.32383787,61003.0,61002.0,0.00259529]
[1723351792100,1.32583787,61003.0,61002.0,0.00259529]
[1723351792980,1.32383787,61003.0,61002.0,0.00259529]
[1723351793177,1.26013787,61003.0,61002.0,0.00259529]
[1723351793378,1.03114187,61003.0,61002.0,0.00159529]
[1723351793584,1.26063787,61003.0,61002.0,0.00459529]
[1723351793895,1.26063787,61003.0,61002.0,0.00159529]
[1723351794298,1.26063787,61003.0,61002.0,0.00259529]
[1723351794499,1.26063787,61003.0,61002.0,0.00159529]
[1723351794928,1.26063787,61003.0,61002.0,0.00259529]
[1723351795130,1.25863787,61003.0,61002.0,0.00259529]
[1723351795297,1.26063787,61003.0,61002.0,0.00259529]
[1723351795895,1.25863787,61003.0,61002.0,0.00259529]
[1723351796322,1.26063787,61003.0,61002.0,0.00259529]
[1723351796723,1.03114187,61003.0,61002.0,0.00259529]
[1723351797177,0.95304187,61003.0,61002.0,0.00259529]
[1723351800061,0.95304187,61003.0,61002.0,0.07869529]
[1723351800259,1.00186231,61003.0,61002.0,0.07869529]
[1723351801233,0.95304187,61003.0,61002.0,0.07869529]
[1723351801405,1.00193231,61003.0,61002.0,0.07869529]
[1723351803211,0.88718431,61003.0,61002.0,0.37069529]
[1723351803417,0.88718431,61003.0,61002.0,0.48544529]
[1723351803418,0.83829387,61003.0,61002.0,0.48544529]
[1723351808294,0.83829387,61003.0,61002.0,1.2979099]
[1723351808553,0.83829387,61003.0,61002.0,1.3179099]
[1723351808753,0.83829387,61003.0,61002.0,1.3199099]
[1723351809026,0.83829387,61003.0,61002.0,1.38797334]
[1723351809230,0.83077648,61003.0,61002.0,1.32957073]
[1723351809467,0.83077648,61003.0,61002.0,1.32757073]
[1723351810095,0.83077648,61003.0,61002.0,1.33157073]
[1723351810299,0.83077648,61003.0,61002.0,1.0874099]
[1723351810639,0.83077648,61003.0,61002.0,1.1154099]
[1723351810640,0.83177648,61003.0,61002.0,1.1154099]
[1723351810844,0.83077648,61003.0,61002.0,1.10123192]
[1723351811247,0.83724006,61003.0,61002.0,1.01386021]
[1723351811380,0.83724006,61003.0,61002.0,1.11532491]
[1723351811567,0.83724006,61003.0,61002.0,1.24336021]
[1723351811762,0.83724006,61003.0,61002.0,1.03722447]
[1723351812284,0.83724006,61003.0,61002.0,1.02322447]
[1723351812500,0.83724006,61003.0,61002.0,1.00922447]
[1723351812501,0.83624006,61003.0,61002.0,1.00922447]
[1723351812703,0.83724006,61003.0,61002.0,1.26672447]
[1723351812957,0.83724006,61003.0,61002.0,1.03722447]
[1723351813295,0.83724006,61003.0,61002.0,1.02322447]
[1723351813494,0.83724006,61003.0,61002.0,1.28972447]
[1723351814962,0.83724006,61003.0,61002.0,1.29172447]
[1723351816092,0.00729558,61003.0,61002.0,1.39172447]
[1723351816249,0.001832,61003.0,61002.0,1.39172447]
[1723351816767,0.001832,61003.0,61002.0,1.68928213]
[1723351817808,0.001832,61003.0,61002.0,1.51976021]
[1723351818012,0.001832,61003.0,61002.0,1.68974009]
[1723351819969,0.001832,61003.0,61002.0,1.85987576]
[1723351820472,0.001832,61003.0,61002.0,1.90893846]
[1723351820607,0.001832,61003.0,61002.0,1.85987576]
[1723351821344,0.001832,61003.0,61002.0,1.51976021]
[1723351821592,0.001832,61003.0,61002.0,1.8599379]
[1723351821905,0.001832,61003.0,61002.0,1.90899142]
[1723351822094,0.001832,61003.0,61002.0,1.85992872]
[1723351822283,0.001832,61003.0,61002.0,2.16319906]
[1723351822586,0.000832,61003.0,61002.0,2.18437929]
[1723351822788,0.000832,61003.0,61002.0,2.3005229]
[1723351822987,0.001832,61003.0,61002.0,2.3145229]
[1723351823184,0.001832,61003.0,61002.0,2.31450987]
[1723351823385,0.001832,61003.0,61002.0,2.1919625]
[1723351823586,0.001832,61003.0,61002.0,2.18742107]
[1723351824972,0.001832,61003.0,61002.0,2.18738551]
[1723351825369,0.001832,61003.0,61002.0,2.16284179]
[1723351826219,0.000831,61024.0,61023.0,0.87605419]
[1723351826537,0.000831,61024.0,61023.0,1.19346911]
[1723351826691,0.000831,61024.0,61023.0,1.29549058]
[1723351827245,0.000831,61024.0,61023.0,1.19346911]
[1723351827464,0.000831,61024.0,61023.0,1.20346911]
[1723351827664,0.000831,61024.0,61023.0,1.05556911]
[1723351827995,0.000831,61024.0,61023.0,0.98746911]
[1723351828205,0.000831,61024.0,61023.0,0.97746911]
[1723351828401,0.000831,61024.0,61023.0,0.98746911]
[1723351829244,0.000831,61024.0,61023.0,0.99346911]
[1723351830515,0.000831,61024.0,61023.0,1.09156911]
[1723351830716,0.000831,61024.0,61023.0,1.23246911]
[1723351831600,0.000831,61024.0,61023.0,1.25330167]
[1723351833086,0.000831,61024.0,61023.0,1.43511627]
[1723351833573,0.000831,61024.0,61023.0,1.45811627]
[1723351834143,0.000831,61024.0,61023.0,1.45211627]
[1723351834526,0.000831,61024.0,61023.0,1.46411627]
[1723351834839,0.000831,61024.0,61023.0,1.46611627]
[1723351835249,0.000831,61024.0,61023.0,1.46411627]
[1723351835445,0.000831,61024.0,61023.0,1.45411627]
[1723351835859,0.000831,61024.0,61023.0,1.46811627]
[1723351836468,0.580831,61024.0,61023.0,1.46811627]
[1723351836668,0.58635116,61024.0,61023.0,1.46811627]
[1723351836918,0.00635116,61024.0,61023.0,1.67753727]
[1723351837120,0.000831,61024.0,61023.0,1.69953727]
[1723351838695,0.000831,61024.0,61023.0,1.69753727]
[1723351839630,0.000831,61024.0,61023.0,1.69953727]
[1723351841807,0.000831,61024.0,61023.0,1.69753727]
[1723351842609,0.000831,61024.0,61023.0,1.67753727]
[1723351842814,0.000831,61024.0,61023.0,1.69753727]
[1723351842991,0.000831,61024.0,61023.0,1.4676933]
[1723351843193,0.640831,61024.0,61023.0,1.4676933]
[1723351843371,0.640831,61024.0,61023.0,1.46769424]
[1723351843577,0.64636507,61024.0,61023.0,1.24869424]
[1723351843812,0.64636507,61024.0,61023.0,1.32679424]
[1723351844985,0.64636507,61024.0,61023.0,1.27379424]
[1723351845187,0.64636507,61024.0,61023.0,1.30379424]
[1723351849609,0.64636507,61024.0,61023.0,1.30579424]
[1723351849910,0.64636507,61024.0,61023.0,1.30379424]
[1723351850109,0.64636507,61024.0,61023.0,1.45159424]
[1723351850289,0.64636507,61024.0,61023.0,1.52210776]
[1723351852172,0.64636507,61024.0,61023.0,1.69219899]
[1723351853313,0.64636507,61024.0,61023.0,1.69019899]
[1723351853979,0.64636507,61024.0,61023.0,1.52000326]
[1723351854185,0.64636507,61024.0,61023.0,1.69209206]
[1723351854481,0.64636507,61024.0,61023.0,1.71509058]
[1723351854708,0.640831,61024.0,61023.0,1.71509058]
[1723351855092,0.6463649,61024.0,61023.0,1.71509058]
[1723351855830,0.6463649,61024.0,61023.0,1.47696735]
[1723351856039,0.6463649,61024.0,61023.0,1.71508948]
[1723351856206,0.640831,61024.0,61023.0,1.71508948]
[1723351856590,0.6463649,61024.0,61023.0,1.71508948]
[1723351856795,0.6463649,61024.0,61023.0,1.94451048]
[1723351860456,0.6463649,61024.0,61023.0,1.79471048]
[1723351860657,0.6463649,61024.0,61023.0,1.56528948]
[1723351860859,0.640831,61024.0,61023.0,1.56528948]
[1723351861388,0.6463649,61024.0,61023.0,1.48718948]
[1723351861595,0.6463649,61024.0,61023.0,1.20476848]
[1723351861793,0.7911649,61024.0,61023.0,0.80283143]
[1723351864961,0.7911649,61024.0,61023.0,0.70023319]
[1723351865295,0.785631,61024.0,61023.0,0.80251738]
[1723351865657,0.79116561,61024.0,61023.0,0.80251738]
[1723351867111,0.64636561,61024.0,61023.0,1.2057533]
[1723351867807,0.64636561,61024.0,61023.0,1.1957533]
[1723351868192,0.640831,61024.0,61023.0,1.19585582]
[1723351868387,0.64635535,61024.0,61023.0,1.19585582]
[1723351870730,0.64635535,61024.0,61023.0,1.20585582]
[1723351870916,0.64635535,61024.0,61023.0,1.19585582]
[1723351872080,0.64635535,61024.0,61023.0,1.19581924]
[1723351872328,0.64635535,61024.0,61023.0,1.20581924]
[1723351872548,0.64824,61024.0,61023.0,1.20581924]
[1723351873924,0.64824,61024.0,61023.0,1.19581924]
[1723351874115,0.64824,61024.0,61023.0,1.20581924]
[1723351874371,0.64824,61024.0,61023.0,1.19581924]
[1723351875780,0.64824,61024.0,61023.0,1.19562055]
[1723351876316,0.64824,61024.0,61023.0,1.20562048]
[1723351879716,0.64824,61024.0,61023.0,1.19574061]
[1723351883335,0.64824,61024.0,61023.0,1.19580763]
[1723351887079,0.64824,61024.0,61023.0,1.1957395]
[1723351887450,0.64824,61024.0,61023.0,1.09346911]
[1723351887653,0.64824,61024.0,61023.0,1.19573949]
[1723351888838,0.64824,61024.0,61023.0,1.20573949]
[1723351890085,0.64824,61024.0,61023.0,1.19573949]
[1723351890747,0.64824,61024.0,61023.0,1.09346911]
[1723351890951,0.64824,61024.0,61023.0,1.19579105]
[1723351893661,0.64824,61024.0,61023.0,1.20579105]
[1723351894037,0.64824,61024.0,61023.0,1.19579105]
[1723351894845,0.64824,61024.0,61023.0,1.20579105]
[1723351895445,0.640831,61024.0,61023.0,1.20579105]
[1723351895912,0.64789081,61024.0,61023.0,1.20579105]
[1723351897065,0.64789081,61024.0,61023.0,1.27383262]
[1723351897580,0.640831,61024.0,61023.0,1.27383242]
[1723351897952,0.64789081,61024.0,61023.0,1.27383242]
[1723351898158,0.64789081,61024.0,61023.0,1.20579105]
[1723351898159,0.00789081,61024.0,61023.0,1.20579105]
[1723351898474,0.000831,61024.0,61023.0,1.20579105]
[1723351898680,0.000831,61024.0,61023.0,1.10346911]
[1723351898936,0.000831,61024.0,61023.0,1.20584925]
[1723351899186,0.000831,61024.0,61023.0,1.17946911]
[1723351899438,0.000831,61024.0,61023.0,1.28198597]
[1723351900192,0.000831,61024.0,61023.0,1.45572731]
[1723351900460,0.000831,61024.0,61023.0,1.55780086]
[1723351900792,0.000831,61024.0,61023.0,1.62583987]
[1723351902748,0.000831,61024.0,61023.0,1.6263675]
[1723351902997,0.000832,61031.0,61030.0,0.81356319]
[1723351903229,0.000832,61031.0,61030.0,1.24674482]
[1723351903473,0.000832,61031.0,61030.0,1.34674482]
[1723351903672,0.000832,61031.0,61030.0,1.58485438]
[1723351903924,0.000832,61031.0,61030.0,1.86539707]
[1723351904150,0.000832,61031.0,61030.0,1.91297092]
[1723351904375,0.000832,61031.0,61030.0,1.98046919]
[1723351904636,0.000832,61031.0,61030.0,1.91794492]
[1723351904894,0.000832,61031.0,61030.0,1.91294492]
[1723351905395,0.000832,61031.0,61030.0,1.94094492]
[1723351905640,0.000832,61031.0,61030.0,1.92692234]
[1723351906084,0.000832,61031.0,61030.0,1.94092234]
[1723351906308,0.000832,61031.0,61030.0,1.94092176]
[1723351906541,0.000832,61031.0,61030.0,1.82385505]
[1723351906785,0.000832,61031.0,61030.0,1.93776852]
[1723351907022,0.000832,61031.0,61030.0,1.86409614]
[1723351907314,0.000832,61031.0,61030.0,1.87809614]
[1723351907547,0.000832,61031.0,61030.0,2.20999799]
[1723351907780,0.000832,61031.0,61030.0,2.33301163]
[1723351908038,0.000832,61031.0,61030.0,2.31901163]
[1723351908312,0.000832,61031.0,61030.0,2.33301163]
[1723351908586,0.000832,61031.0,61030.0,2.34701163]
[1723351908810,0.000832,61031.0,61030.0,2.33301163]
[1723351909031,0.000832,61031.0,61030.0,2.34701163]
[1723351909384,0.000832,61031.0,61030.0,2.20999799]
[1723351909583,0.000832,61031.0,61030.0,2.19599799]
[1723351910127,0.000832,61031.0,61030.0,2.20999799]
[1723351910505,0.000832,61031.0,61030.0,2.04022105]
[1723351910710,0.000832,61031.0,61030.0,2.21025294]
[1723351910921,0.000832,61031.0,61030.0,1.86798016]
[1723351911124,0.000832,61031.0,61030.0,2.21037642]
[1723351911565,0.000832,61031.0,61030.0,2.3328647]
[1723351912367,0.000832,61031.0,61030.0,2.21037642]
[1723351912555,0.000832,61031.0,61030.0,2.33286188]
[1723351912759,0.000832,61031.0,61030.0,2.20583706]
[1723351913319,0.000832,61031.0,61030.0,2.10786957]
[1723351913544,0.000832,61031.0,61030.0,2.20581574]
[1723351914342,0.000832,61031.0,61030.0,2.30831256]
[1723351914538,0.000832,61031.0,61030.0,2.20581574]
[1723351915123,0.000832,61031.0,61030.0,2.2057883]
[1723351915523,0.000832,61031.0,61030.0,2.10786957]
[1723351916572,0.000832,61049.0,61048.0,0.03068119]
[1723351916857,0.000832,61049.0,61048.0,0.56148611]
[1723351916858,0.00793904,61049.0,61048.0,0.56148611]
[1723351917010,0.000832,61049.0,61048.0,0.79081311]
[1723351917212,0.000832,61049.0,61048.0,1.02014011]
[1723351917997,0.000832,61049.0,61048.0,1.02814011]
[1723351918359,0.000832,61049.0,61048.0,1.10303488]
[1723351918492,0.000832,61049.0,61048.0,1.00814011]
[1723351918701,0.146832,61049.0,61048.0,0.97514011]
[1723351918887,0.146832,61049.0,61048.0,0.74581311]
[1723351919083,0.146832,61049.0,61048.0,0.75781311]
[1723351923047,0.146832,61049.0,61048.0,0.76781311]
[1723351923401,0.146832,61049.0,61048.0,0.75781311]
[1723351927410,0.146832,61049.0,61048.0,0.8627257]
[1723351929827,0.146832,61049.0,61048.0,0.36467119]
[1723351930246,0.146832,61049.0,61048.0,0.59399819]
[1723351930445,0.146832,61049.0,61048.0,0.69869196]
[1723351931975,0.146832,61049.0,61048.0,0.59399819]
[1723351932182,0.146832,61049.0,61048.0,0.69864614]
[1723351932437,0.146832,61049.0,61048.0,0.59399819]
[1723351932619,0.146832,61049.0,61048.0,0.6987943]
[1723351933065,0.146832,61049.0,61048.0,0.69879437]
[1723351933386,0.146832,61049.0,61048.0,0.46946737]
[1723351933786,0.146832,61049.0,61048.0,0.69879437]
[1723351934095,0.146832,61049.0,61048.0,0.46946737]
[1723351934307,0.146832,61049.0,61048.0,0.46953655]
[1723351934512,0.146832,61049.0,61048.0,0.69886355]
[1723351936359,0.146832,61049.0,61048.0,0.6988493]
[1723351937112,0.146832,61049.0,61048.0,0.59399819]
[1723351937262,0.146832,61049.0,61048.0,0.6988751]
[1723351939941,0.146832,61049.0,61048.0,0.59399819]
[1723351940142,0.146832,61049.0,61048.0,0.69899004]
[1723351942283,0.146832,61049.0,61048.0,0.46966304]
[1723351942716,0.146832,61049.0,61048.0,0.69899004]
[1723351943478,0.146832,61049.0,61048.0,0.59399819]
[1723351943707,0.146832,61049.0,61048.0,0.69880295]
[1723351944052,0.146832,61049.0,61048.0,0.59399819]
[1723351944260,0.146832,61049.0,61048.0,0.69880303]
[1723351944390,0.146832,61049.0,61048.0,0.12548603]
[1723351944811,0.146832,61049.0,61048.0,0.02068119]
[1723351944812,0.15360822,61049.0,61048.0,0.02068119]
[1723351945033,0.15360822,61049.0,61048.0,0.13534419]
[1723351948790,0.15360822,61049.0,61048.0,0.02068119]
[1723351948996,1.58380729,61049.0,61048.0,0.02068119]
[1723351949232,1.58380729,61049.0,61048.0,0.02]
[1723351949233,1.86184839,61049.0,61048.0,0.02]
[1723351949364,1.83886978,61049.0,61048.0,0.02]
[1723351949956,1.83886978,61049.0,61048.0,0.012]
[1723351950568,0.635027,61047.0,61046.0,0.00068119]
[1723351950767,1.84023821,61047.0,61046.0,0.00068119]
[1723351950975,1.84553907,61047.0,61046.0,0.00068119]
[1723351951401,1.72344278,61047.0,61046.0,0.00068119]
[1723351952631,1.95277378,61047.0,61046.0,0.00068119]
[1723351953093,1.95277378,61047.0,61046.0,0.00268119]
[1723351953581,2.05041638,61047.0,61046.0,0.00268119]
[1723351953803,2.06031024,61047.0,61046.0,0.00268119]
[1723351954379,2.03586071,61047.0,61046.0,0.00268119]
[1723351954578,2.06031024,61047.0,61046.0,0.00268119]
[1723351954777,1.96411178,61047.0,61046.0,0.00268119]
[1723351955721,2.03728557,61047.0,61046.0,0.00268119]
[1723351957378,1.96411178,61047.0,61046.0,0.00268119]
[1723351958093,2.01287501,61047.0,61046.0,0.00268119]
[1723351959462,1.96411178,61047.0,61046.0,0.00268119]
[1723351959860,2.01287501,61047.0,61046.0,0.00268119]
[1723351960263,1.96411178,61047.0,61046.0,0.00268119]
[1723351963007,1.96411178,61047.0,61046.0,0.002]
[1723351963216,2.03728557,61047.0,61046.0,0.002]
[1723351963751,1.96411178,61047.0,61046.0,0.002]
[1723351964172,2.06175438,61047.0,61046.0,0.002]
[1723351964371,1.96411178,61047.0,61046.0,0.002]
[1723351965759,1.96411178,61047.0,61046.0,0.00268119]
[1723351965956,1.96411178,61047.0,61046.0,0.002]
[1723351966569,2.03718581,61047.0,61046.0,0.002]
[1723351967611,1.95908581,61047.0,61046.0,0.002]
[1723351967813,1.96411178,61047.0,61046.0,0.002]
[1723351968017,2.03718581,61047.0,61046.0,0.002]
[1723351968221,1.96411178,61047.0,61046.0,0.002]
[1723351969499,2.01281816,61047.0,61046.0,0.002]
[1723351969717,1.96411178,61047.0,61046.0,0.002]
[1723351970264,1.96494278,61047.0,61046.0,0.002]
[1723351971774,2.06484659,61047.0,61046.0,0.002]
[1723351972036,1.98674659,61047.0,61046.0,0.002]
[1723351972172,2.01365014,61047.0,61046.0,0.002]
[1723351973558,2.11338076,61047.0,61046.0,0.002]
[1723351973907,2.11338461,61047.0,61046.0,0.002]
[1723351974328,2.0646734,61047.0,61046.0,0.002]
[1723351975480,2.13774022,61047.0,61046.0,0.002]
[1723351977064,2.1378215,61047.0,61046.0,0.002]
[1723351977496,2.0380096,61047.0,61046.0,0.002]
[1723351977694,2.13791359,61047.0,61046.0,0.002]
[1723351980603,2.06484677,61047.0,61046.0,0.002]
[1723351982290,2.1622692,61047.0,61046.0,0.002]
[1723351984438,2.06484677,61047.0,61046.0,0.002]
[1723351985405,2.18662481,61047.0,61046.0,0.002]
[1723351986458,2.18675809,61047.0,61046.0,0.002]
[1723351986638,2.06484677,61047.0,61046.0,0.002]
[1723351987162,1.96494278,61047.0,61046.0,0.002]
[1723351987363,2.06548121,61047.0,61046.0,0.002]
[1723351987748,2.06548039,61047.0,61046.0,0.002]
[1723351988505,2.39481139,61047.0,61046.0,0.002]
[1723351988686,3.0388012,61047.0,61046.0,0.002]
[1723351988889,3.20338149,61047.0,61046.0,0.002]
[1723351989392,3.0388012,61047.0,61046.0,0.002]
[1723351989552,3.20350221,61047.0,61046.0,0.002]
[1723351989755,3.21350221,61047.0,61046.0,0.002]
[1723351989991,3.2691663,61047.0,61046.0,0.002]
[1723351990330,3.10446534,61047.0,61046.0,0.002]
[1723351990985,2.86873036,61047.0,61046.0,0.002]
[1723351991302,0.940749,61040.0,61039.0,0.00068119]
[1723351991627,2.17606085,61040.0,61039.0,0.00068119]
[1723351992428,2.53840658,61040.0,61039.0,0.00068119]
[1723351992632,2.68488305,61040.0,61039.0,0.00068119]
[1723351993210,2.68588305,61040.0,61039.0,0.00068119]
[1723351993458,2.68591939,61040.0,61039.0,0.00068119]
[1723351993617,2.17710906,61040.0,61039.0,0.00068119]
[1723351994589,2.54922626,61040.0,61039.0,0.00068119]
[1723351995123,2.54703747,61040.0,61039.0,0.00068119]
[1723351995724,2.54704351,61040.0,61039.0,0.00068119]
[1723351998535,2.6935598,61040.0,61039.0,0.00068119]
[1723351998982,2.54704351,61040.0,61039.0,0.00068119]
[1723351999289,2.44902656,61040.0,61039.0,0.00068119]
[1723351999517,2.54721341,61040.0,61039.0,0.00068119]
[1723351999678,2.18490975,61040.0,61039.0,0.00068119]
[1723351999891,2.18491093,61040.0,61039.0,0.00068119]
[1723352000421,2.04671093,61040.0,61039.0,0.00068119]
[1723352000586,2.12481093,61040.0,61039.0,0.00068119]
[1723352000765,1.90039989,61040.0,61039.0,0.00068119]
[1723352000974,1.65848497,61040.0,61039.0,0.00068119]
[1723352001173,1.7363439,61040.0,61039.0,0.00068119]
[1723352002387,1.73632887,61040.0,61039.0,0.00068119]
[1723352003663,1.73634886,61040.0,61039.0,0.00068119]
[1723352004077,1.90016378,61040.0,61039.0,0.00068119]
[1723352004428,1.97916378,61040.0,61039.0,0.00068119]
[1723352007573,1.90016378,61040.0,61039.0,0.00068119]
[1723352008044,1.80221186,61040.0,61039.0,0.00068119]
[1723352008173,1.90082976,61040.0,61039.0,0.00068119]
[1723352010032,1.66164532,61040.0,61039.0,0.13678119]
[1723352010240,1.52218191,61040.0,61039.0,0.13678119]
[1723352010415,1.47332915,61040.0,61039.0,0.13678119]
[1723352013440,1.4000435,61040.0,61039.0,0.13678119]
[1723352013795,1.47332915,61040.0,61039.0,0.13678119]
[1723352014112,1.4000435,61040.0,61039.0,0.13678119]
[1723352015298,1.0925865,61040.0,61039.0,0.13678119]
[1723352015843,1.14143733,61040.0,61039.0,0.13678119]
[1723352016268,0.91208033,61040.0,61039.0,0.13678119]
[1723352017568,0.79740233,61040.0,61039.0,0.13678119]
[1723352017769,0.0085515,61040.0,61039.0,0.13678119]
[1723352018213,0.0075515,61040.0,61039.0,0.13678119]
[1723352018397,0.0075515,61040.0,61039.0,0.25146119]
[1723352018601,0.0085515,61040.0,61039.0,0.25146119]
[1723352018992,0.0075515,61040.0,61039.0,0.25146119]
[1723352019387,0.0085515,61040.0,61039.0,0.25146119]
[1723352019758,0.0075515,61040.0,61039.0,0.25146119]
[1723352019974,0.0075515,61040.0,61039.0,0.48082219]
[1723352020092,0.0085515,61040.0,61039.0,0.48082219]
[1723352020289,0.861831,61040.0,61039.0,0.48082219]
[1723352020494,0.86855718,61040.0,61039.0,0.71018319]
[1723352020714,0.00855718,61040.0,61039.0,0.81646379]
[1723352020951,0.001831,61040.0,61039.0,1.22263971]
[1723352021160,0.001831,61040.0,61039.0,1.21963971]
[1723352021544,0.001831,61040.0,61039.0,1.24949626]
[1723352021908,0.000831,61040.0,61039.0,1.24949626]
[1723352022136,0.000831,61040.0,61039.0,1.25249626]
[1723352022342,0.001831,61040.0,61039.0,1.25749626]
[1723352022798,0.000831,61040.0,61039.0,1.25249626]
[1723352023028,0.000831,61040.0,61039.0,1.26649626]
[1723352023205,0.000831,61040.0,61039.0,1.28049626]
[1723352023787,0.000831,61040.0,61039.0,1.26649626]
[1723352024168,0.000831,61040.0,61039.0,1.28049626]
[1723352024391,0.000831,61040.0,61039.0,1.26649626]
[1723352024590,0.000831,61040.0,61039.0,1.16021566]
[1723352024790,0.000831,61040.0,61039.0,1.28016268]
[1723352025286,0.000831,61040.0,61039.0,1.35826276]
[1723352028237,0.000831,61040.0,61039.0,1.25231566]
[1723352028458,0.000831,61040.0,61039.0,1.35816495]
[1723352029051,0.000831,61040.0,61039.0,1.3483084]
[1723352029246,0.000831,61040.0,61039.0,1.24245911]
[1723352030311,0.000831,61040.0,61039.0,1.34835926]
[1723352032645,0.000831,61040.0,61039.0,1.32535926]
[1723352032853,0.000831,61040.0,61039.0,1.00789706]
[1723352033682,0.000831,61040.0,61039.0,1.01789706]
[1723352034353,0.000831,61040.0,61039.0,0.91199811]
[1723352034718,0.000831,61040.0,61039.0,0.90199811]
[1723352035760,0.000831,61040.0,61039.0,0.73818319]
[1723352035964,0.000831,61040.0,61039.0,0.50882219]
[1723352037089,0.000831,61040.0,61039.0,0.37272219]
[1723352042437,0.000831,61040.0,61039.0,0.60208319]
[1723352043877,0.000831,61040.0,61039.0,0.74308319]
[1723352044305,0.000831,61040.0,61039.0,0.84931267]
[1723352045052,0.000831,61040.0,61039.0,0.92741267]
[1723352046241,0.000831,61040.0,61039.0,0.92746729]
[1723352047602,0.000831,61040.0,61039.0,0.92748276]
[1723352047994,0.000831,61040.0,61039.0,0.82118319]
[1723352048209,0.000831,61040.0,61039.0,0.92748277]
[1723352049351,0.000831,61040.0,61039.0,1.46024901]
[1723352049544,0.000831,61040.0,61039.0,1.48324901]
[1723352049719,0.000831,61040.0,61039.0,1.55126849]
[1723352049920,0.000831,61040.0,61039.0,1.55326849]
[1723352050543,0.000831,61040.0,61039.0,1.72331314]
[1723352051305,0.000831,61040.0,61039.0,1.37894943]
[1723352051501,0.000831,61040.0,61039.0,1.72357542]
[1723352052522,0.000831,61040.0,61039.0,1.65555761]
[1723352052735,0.000831,61040.0,61039.0,1.72357486]
[1723352053884,0.000831,61040.0,61039.0,1.70157486]
[1723352054187,0.000831,61040.0,61039.0,1.72157486]
[1723352054386,0.000831,61040.0,61039.0,1.70157486]
[1723352054610,0.000831,61040.0,61039.0,1.72357486]
[1723352055577,0.000831,61040.0,61039.0,1.72357467]
[1723352059315,0.000831,61040.0,61039.0,1.37894943]